bitfinex/quotes_SOLUSD_20241209
["timestamp","ask_amount","ask_price","bid_price","bid_amount"]
[1733713415153,20.0,232.56,232.47,8.5709954]
[1733713415350,20.0,232.56,232.42,23.776884]
[1733713415351,20.0,232.56,232.48,8.5709954]
[1733713416363,20.0,232.56,232.49,8.5709954]
[1733713417260,20.0,232.56,232.5,8.5709954]
[1733713417680,20.0,232.56,232.49,8.5709954]
[1733713418265,20.0,232.56,232.5,8.5709954]
[1733713418466,4.3351,232.6,232.52,8.5709954]
[1733713418658,20.0,232.59,232.52,8.5709954]
[1733713419384,20.0,232.59,232.51,8.5709954]
[1733713420164,20.0,232.59,232.53,8.5709954]
[1733713421086,6.638,232.64,232.54,8.5709954]
[1733713421388,6.638,232.64,232.56,8.5709954]
[1733713421574,6.638,232.64,232.55,8.5709954]
[1733713422288,6.638,232.64,232.54,8.5709954]
[1733713423161,20.0,232.61,232.54,8.5709954]
[1733713424567,20.0,232.61,232.56,8.5709954]
[1733713424770,20.0,232.63,232.56,8.5709954]
[1733713425770,20.0,232.63,232.54,8.5709954]
[1733713429462,20.0,232.63,232.55,8.5709954]
[1733713430490,20.0,232.63,232.5,0.64489696]
[1733713430705,20.0,232.63,232.53,8.5709954]
[1733713431063,20.0,232.63,232.54,8.5709954]
[1733713431909,20.0,232.63,232.56,8.5709954]
[1733713432893,20.0,232.63,232.55,8.5709954]
[1733713436083,20.0,232.63,232.52,0.64488387]
[1733713436296,20.0,232.63,232.54,8.5709954]
[1733713438005,20.0,232.63,232.49,7.84330011]
[1733713438303,20.0,232.63,232.52,8.5709954]
[1733713438879,20.0,232.63,232.47,4.1131]
[1733713439217,20.0,232.59,232.5,8.5709954]
[1733713440079,20.0,232.59,232.51,8.5709954]
[1733713442414,20.0,232.59,232.52,8.5709954]
[1733713442707,20.0,232.59,232.54,8.5709954]
[1733713444017,20.0,232.59,232.53,8.5709954]
[1733713444178,20.0,232.59,232.48,23.776884]
[1733713444179,20.0,232.59,232.54,8.5709954]
[1733713444612,20.0,232.59,232.53,8.5709954]
[1733713444985,20.0,232.59,232.51,0.64495185]
[1733713444986,20.0,232.59,232.52,8.5709954]
[1733713445187,20.0,232.59,232.51,0.64495185]
[1733713445188,20.0,232.59,232.51,8.5709954]
[1733713445382,20.0,232.59,232.53,8.5709954]
[1733713445611,20.0,232.59,232.56,8.5709954]
[1733713445811,6.00374987,232.66,232.56,8.5709954]
[1733713447122,20.0,232.63,232.56,8.5709954]
[1733713447287,20.0,232.63,232.55,8.5709954]
[1733713447686,20.0,232.64,232.56,8.5709954]
[1733713447890,20.0,232.64,232.58,8.5709954]
[1733713448103,20.0,232.64,232.59,8.5709954]
[1733713448423,4.2734,232.66,232.59,8.5709954]
[1733713449085,11.3239,232.71,232.62,8.5709954]
[1733713450617,20.0,232.68,232.62,8.5709954]
[1733713451709,11.3239,232.71,232.65,8.5709954]
[1733713451710,4.231,232.71,232.65,8.5709954]
[1733713451985,20.0,232.73,232.64,8.5709954]
[1733713454116,20.0,232.73,232.66,8.5709954]
[1733713454318,20.0,232.73,232.65,8.5709954]
[1733713455113,12.72668816,232.76,232.61,0.64461797]
[1733713455114,11.0267,232.76,232.66,8.5709954]
[1733713455317,4.2086,232.76,232.68,8.5709954]
[1733713455487,4.2086,232.76,232.69,8.5709954]
[1733713455687,4.2086,232.76,232.62,0.64449286]
[1733713455688,4.2086,232.76,232.68,8.5709954]
[1733713456300,11.74567539,232.82,232.68,8.5709954]
[1733713456522,11.74567539,232.82,232.62,0.64449286]
[1733713456523,11.4157,232.82,232.71,8.5709954]
[1733713456825,20.0,232.79,232.71,8.5709954]
[1733713457410,11.4157,232.82,232.71,8.5709954]
[1733713457892,13.11618403,232.82,232.72,8.5709954]
[1733713458390,11.4157,232.82,232.73,8.5709954]
[1733713459698,20.0,232.79,232.72,8.5709954]
[1733713461316,20.0,232.79,232.73,8.5709954]
[1733713461629,20.0,232.79,232.72,8.5709954]
[1733713462424,20.0,232.81,232.73,32.99224505]
[1733713462729,20.0,232.81,232.73,32.3478794]
[1733713463791,20.0,232.81,232.69,0.64431306]
[1733713463991,20.0,232.81,232.72,8.5709954]
[1733713464426,20.0,232.81,232.71,8.5709954]
[1733713464610,20.0,232.81,232.72,8.5709954]
[1733713464807,4.3476,232.82,232.72,8.5709954]
[1733713465034,4.3476,232.82,232.73,8.5709954]
[1733713465506,4.3476,232.82,232.72,8.5709954]
[1733713466619,4.3476,232.82,232.71,32.3478794]
[1733713466929,4.3476,232.82,232.71,8.5709954]
[1733713467299,4.3476,232.82,232.72,8.5709954]
[1733713468099,4.3476,232.82,232.68,0.6444291]
[1733713468299,4.3476,232.82,232.7,8.5709954]
[1733713468507,4.3476,232.82,232.68,0.6444291]
[1733713468835,20.0,232.8,232.68,8.5709954]
[1733713469212,20.0,232.8,232.69,8.5709954]
[1733713469730,20.0,232.8,232.68,8.5709954]
[1733713471034,1.72446515,232.78,232.68,8.5709954]
[1733713472933,1.72446515,232.78,232.67,8.5709954]
[1733713473236,1.72446515,232.78,232.65,8.5709954]
[1733713474122,1.72446515,232.78,232.62,0.6445598]
[1733713474123,1.72446515,232.78,232.64,8.5709954]
[1733713474425,4.7517897,232.74,232.62,0.6445598]
[1733713474626,4.7517897,232.74,232.62,8.5709954]
[1733713475033,20.0,232.73,232.62,8.5709954]
[1733713476839,20.0,232.73,232.6,8.5709954]
[1733713477031,6.8946,232.72,232.58,23.776884]
[1733713477348,20.0,232.69,232.59,8.5709954]
[1733713478136,20.0,232.69,232.6,8.5709954]
[1733713481435,20.0,232.69,232.56,24.42163563]
[1733713481623,20.0,232.69,232.58,8.5709954]
[1733713481944,20.0,232.69,232.52,0.64476427]
[1733713482149,20.0,232.69,232.56,8.5709954]
[1733713482352,21.73385416,232.69,232.55,8.5709954]
[1733713482662,21.73385416,232.69,232.56,8.5709954]
[1733713482825,24.3139,232.68,232.56,8.5709954]
[1733713483261,20.0,232.66,232.58,8.5709954]
[1733713484151,20.0,232.66,232.57,8.5709954]
[1733713485785,20.0,232.66,232.58,8.5709954]
[1733713486452,20.0,232.66,232.55,24.42173324]
[1733713486648,20.0,232.66,232.57,8.5709954]
[1733713488525,20.0,232.66,232.55,24.42173324]
[1733713488526,20.0,232.66,232.56,8.5709954]
[1733713488730,20.0,232.66,232.55,8.5709954]
[1733713490548,20.0,232.66,232.53,23.776884]
[1733713490747,20.0,232.66,232.55,8.5709954]
[1733713491267,20.0,232.66,232.5,4.4367]
[1733713491568,20.0,232.62,232.47,0.64494836]
[1733713491776,20.0,232.62,232.51,8.5709954]
[1733713492480,20.0,232.62,232.47,0.64494836]
[1733713492667,20.0,232.62,232.51,8.5709954]
[1733713493358,20.0,232.62,232.58,8.5709954]
[1733713493551,20.0,232.66,232.58,8.5709954]
[1733713494273,20.0,232.67,232.59,8.5709954]
[1733713494449,4.3139,232.68,232.63,8.5709954]
[1733713495071,4.3139,232.68,232.62,8.5709954]
[1733713495637,20.0,232.67,232.62,8.5709954]
[1733713496576,20.0,232.67,232.61,8.5709954]
[1733713499971,20.0,232.67,232.62,8.5709954]
[1733713501484,20.0,232.67,232.61,8.5709954]
[1733713501985,20.0,232.67,232.62,8.5709954]
[1733713504485,20.0,232.67,232.63,8.5709954]
[1733713505170,20.0,232.67,232.62,8.5709954]
[1733713505781,20.0,232.67,232.63,8.5709954]
[1733713506787,20.0,232.67,232.62,8.5709954]
[1733713507289,20.0,232.71,232.64,8.5709954]
[1733713507657,20.0,232.71,232.58,23.776884]
[1733713507857,20.0,232.71,232.61,8.5709954]
[1733713508272,20.0,232.71,232.62,8.5709954]
[1733713509389,20.0,232.71,232.64,8.5709954]
[1733713509688,2.2472517,232.74,232.64,8.5709954]
[1733713510892,2.2472517,232.74,232.63,8.5709954]
[1733713511191,2.2472517,232.74,232.64,8.5709954]
[1733713511555,0.5037897,232.74,232.65,8.5709954]
[1733713512384,0.5037897,232.74,232.69,8.5709954]
[1733713512901,0.5037897,232.74,232.7,8.5709954]
[1733713513613,0.5037897,232.74,232.69,8.5709954]
[1733713514203,0.5037897,232.74,232.68,8.5709954]
[1733713515389,0.5037897,232.74,232.71,8.5709954]
[1733713515595,0.5037897,232.74,232.7,8.5709954]
[1733713515788,0.5037897,232.74,232.69,8.5709954]
[1733713517897,0.5037897,232.74,232.68,8.5709954]
[1733713522320,0.5037897,232.74,232.67,8.5709954]
[1733713522893,0.5037897,232.74,232.68,8.5709954]
[1733713523109,0.5037897,232.74,232.64,24.42145045]
[1733713523110,0.5037897,232.74,232.64,23.776884]
[1733713523412,0.5037897,232.74,232.63,6.696]
[1733713523413,0.5037897,232.74,232.65,8.5709954]
[1733713523584,0.5037897,232.74,232.6,0.64462526]
[1733713523783,0.5037897,232.74,232.63,8.5709954]
[1733713525826,0.5037897,232.74,232.6,0.64462526]
[1733713525992,0.5037897,232.74,232.61,23.776884]
[1733713526201,0.5037897,232.74,232.63,8.5709954]
[1733713529035,0.5037897,232.74,232.59,4.3726]
[1733713529238,20.0,232.72,232.6,8.5709954]
[1733713529808,20.0,232.72,232.58,6.6366]
[1733713530015,20.0,232.68,232.54,0.64476624]
[1733713530332,20.0,232.68,232.57,8.5709954]
[1733713530708,20.0,232.68,232.53,11.2258]
[1733713530908,20.0,232.68,232.56,8.5709954]
[1733713531130,20.0,232.68,232.55,8.5709954]
[1733713531935,20.0,232.68,232.48,7.37497127]
[1733713532116,20.0,232.68,232.54,8.5709954]
[1733713533228,20.0,232.68,232.55,8.5709954]
[1733713535635,20.0,232.64,232.48,10.9451]
[1733713535941,20.0,232.61,232.5,8.5709954]
[1733713536530,20.0,232.61,232.45,0.64502076]
[1733713536747,20.0,232.61,232.49,8.5709954]
[1733713537048,20.0,232.61,232.5,8.5709954]
[1733713538273,20.0,232.61,232.54,8.5709954]
[1733713539428,20.0,232.61,232.52,8.5709954]
[1733713540459,20.0,232.61,232.55,8.5709954]
[1733713540619,6.5529,232.64,232.53,0.64502306]
[1733713540620,6.5529,232.64,232.56,8.5709954]
[1733713540822,4.1361,232.66,232.57,8.5709954]
[1733713541650,4.1361,232.66,232.56,8.5709954]
[1733713542530,20.0,232.64,232.56,8.5709954]
[1733713543831,20.0,232.64,232.57,8.5709954]
[1733713544158,20.0,232.64,232.56,8.5709954]
[1733713544523,20.0,232.64,232.57,8.5709954]
[1733713544754,20.0,232.66,232.58,8.5709954]
[1733713544927,20.0,232.66,232.56,8.5709954]
[1733713545751,20.0,232.66,232.54,8.5709954]
[1733713545923,20.0,232.66,232.49,5.02178729]
[1733713546119,20.0,232.66,232.53,8.5709954]
[1733713546734,4.1037,232.65,232.53,8.5709954]
[1733713547150,4.1037,232.65,232.52,8.5709954]
[1733713548359,4.1037,232.65,232.51,8.5709954]
[1733713548653,4.1037,232.65,232.5,8.5709954]
[1733713548826,23.776884,232.64,232.51,8.5709954]
[1733713549025,20.0,232.61,232.51,8.5709954]
[1733713550879,20.0,232.61,232.5,8.5709954]
[1733713551674,20.0,232.61,232.46,23.776884]
[1733713551875,20.0,232.61,232.48,8.5709954]
[1733713553267,20.0,232.61,232.5,8.5709954]
[1733713555353,21.72379987,232.62,232.52,8.5709954]
[1733713555549,4.1037,232.65,232.52,8.5709954]
[1733713555946,4.1037,232.65,232.53,8.5709954]
[1733713556568,20.0,232.62,232.53,8.5709954]
[1733713557049,20.0,232.62,232.54,8.5709954]
[1733713560059,4.1037,232.65,232.55,8.5709954]
[1733713560385,4.1037,232.65,232.54,8.5709954]
[1733713560551,4.1037,232.65,232.52,0.64489764]
[1733713560751,4.1037,232.65,232.54,8.5709954]
[1733713560946,4.1037,232.65,232.56,8.5709954]
[1733713561473,4.1037,232.65,232.59,8.5709954]
[1733713561853,4.1037,232.65,232.58,8.5709954]
[1733713562473,1.71693124,232.7,232.6,8.5709954]
[1733713562657,4.4271,232.71,232.62,8.5709954]
[1733713562861,4.4271,232.71,232.61,0.64479944]
[1733713562862,4.4271,232.71,232.63,8.5709954]
[1733713564581,24.4271,232.71,232.62,8.5709954]
[1733713569094,24.4271,232.71,232.61,8.5709954]
[1733713569301,24.4271,232.71,232.53,0.64470775]
[1733713569600,24.4271,232.71,232.59,8.5709954]
[1733713573906,24.4271,232.71,232.61,8.5709954]
[1733713574398,24.4271,232.71,232.6,8.5709954]
[1733713575115,24.4271,232.71,232.59,8.5709954]
[1733713577207,24.4271,232.71,232.58,8.5709954]
[1733713577879,24.4271,232.71,232.59,8.5709954]
[1733713578407,24.4271,232.71,232.58,8.5709954]
[1733713578775,24.4271,232.71,232.59,8.5709954]
[1733713579483,4.4271,232.71,232.63,8.5709954]
[1733713579693,4.4271,232.71,232.64,8.5709954]
[1733713579899,4.4271,232.71,232.6,0.64477483]
[1733713580194,0.5037897,232.74,232.67,8.5709954]
[1733713582182,20.0,232.72,232.67,8.5709954]
[1733713582531,0.5037897,232.74,232.71,8.5709954]
[1733713582706,0.5037897,232.74,232.72,9.21543123]
[1733713583396,0.5037897,232.74,232.72,8.5709954]
[1733713583600,0.5037897,232.74,232.71,8.5709954]
[1733713583902,0.5037897,232.74,232.7,8.5709954]
[1733713584387,0.5037897,232.74,232.63,0.64444904]
[1733713584584,0.5037897,232.74,232.67,8.5709954]
[1733713584809,0.5037897,232.74,232.68,9.2154786]
[1733713585003,0.5037897,232.74,232.7,8.5709954]
[1733713585206,0.5037897,232.74,232.7,0.64443868]
[1733713585518,0.5037897,232.74,232.69,32.3478794]
[1733713585519,0.5037897,232.74,232.69,23.776884]
[1733713585727,0.5037897,232.74,232.69,24.42133226]
[1733713585930,0.5037897,232.74,232.69,32.99232766]
[1733713588597,0.5037897,232.74,232.7,8.5709954]
[1733713590800,0.5037897,232.74,232.69,32.3478794]
[1733713591026,0.5037897,232.74,232.68,8.5709954]
[1733713591230,0.5037897,232.74,232.67,8.5709954]
[1733713591425,0.5037897,232.74,232.68,9.21547967]
[1733713591625,0.5037897,232.74,232.69,8.5709954]
[1733713592506,0.5037897,232.74,232.68,8.5709954]
[1733713593926,0.5037897,232.74,232.67,8.5709954]
[1733713594813,0.5037897,232.74,232.68,8.5709954]
[1733713597148,0.5037897,232.74,232.65,0.64447099]
[1733713597149,0.5037897,232.74,232.67,8.5709954]
[1733713597448,0.5037897,232.74,232.68,8.5709954]
[1733713598542,0.5037897,232.74,232.67,0.64450529]
[1733713598543,0.5037897,232.74,232.67,8.5709954]
[1733713598846,0.5037897,232.74,232.66,32.3478794]
[1733713599318,0.5037897,232.74,232.67,8.5709954]
[1733713602551,0.5037897,232.74,232.65,8.5709954]
[1733713603847,0.5037897,232.74,232.61,0.6445333]
[1733713604049,0.5037897,232.74,232.62,8.5709954]
[1733713604751,20.0,232.73,232.62,8.5709954]
[1733713604951,26.8602,232.73,232.57,0.64468039]
[1733713605133,26.8602,232.73,232.6,8.5709954]
[1733713605338,26.8602,232.73,232.61,8.5709954]
[1733713606035,26.8602,232.73,232.6,8.5709954]
[1733713609538,26.8602,232.73,232.57,0.64469377]
[1733713609782,26.8602,232.73,232.6,8.5709954]
[1733713610771,26.8602,232.73,232.61,8.5709954]
[1733713611573,26.8602,232.73,232.6,8.5709954]
[1733713621474,26.8602,232.73,232.62,8.5709954]
[1733713621701,26.8602,232.73,232.63,8.5709954]
[1733713622363,26.8602,232.73,232.62,8.5709954]
[1733713622690,26.8602,232.73,232.61,8.5709954]
[1733713623483,26.8602,232.73,232.6,32.3478794]
[1733713623663,26.8602,232.73,232.55,0.64469977]
[1733713623993,20.0,232.72,232.58,8.5709954]
[1733713624203,4.3744,232.69,232.55,0.64469977]
[1733713624366,4.3744,232.69,232.56,8.5709954]
[1733713626584,4.3744,232.69,232.55,8.5709954]
[1733713626963,24.3744,232.69,232.54,8.5709954]
[1733713627189,6.6097,232.68,232.51,23.776884]
[1733713627401,20.0,232.65,232.53,8.5709954]
[1733713627994,20.0,232.65,232.5,0.64489831]
[1733713628195,4.4143,232.64,232.5,8.5709954]
[1733713628526,4.4143,232.64,232.51,8.5709954]
[1733713629484,4.4143,232.64,232.5,8.5709954]
[1733713629988,4.4143,232.64,232.45,0.64502689]
[1733713630169,4.4143,232.64,232.51,8.5709954]
[1733713630863,4.4143,232.64,232.47,0.64502515]
[1733713630864,4.4143,232.64,232.5,8.5709954]
[1733713631503,4.4143,232.64,232.51,8.5709954]
[1733713638089,4.4143,232.64,232.5,8.5709954]
[1733713639500,4.4143,232.64,232.51,8.5709954]
[1733713639816,4.4143,232.64,232.53,8.5709954]
[1733713641125,4.4143,232.64,232.52,9.21592177]
[1733713641326,4.4143,232.64,232.52,8.5709954]
[1733713643824,4.4143,232.64,232.58,8.5709954]
[1733713644414,6.6097,232.68,232.61,8.5709954]
[1733713644594,6.6097,232.68,232.59,8.5709954]
[1733713645305,6.6097,232.68,232.58,8.5709954]
[1733713645822,20.0,232.65,232.58,9.21579696]
[1733713646410,20.0,232.65,232.59,8.5709954]
[1733713647830,20.0,232.65,232.57,8.5709954]
[1733713647994,20.0,232.65,232.55,0.64480175]
[1733713648421,20.0,232.65,232.55,9.21579715]
[1733713652236,20.0,232.65,232.56,8.5709954]
[1733713654022,20.0,232.65,232.56,8.0709954]
[1733713655231,20.0,232.65,232.56,8.5709954]
[1733713655808,20.0,232.65,232.57,9.21581555]
[1733713657427,20.0,232.65,232.57,0.64482015]
[1733713657812,20.0,232.65,232.56,8.5709954]
[1733713662037,20.0,232.65,232.51,0.6448454]
[1733713662333,4.1738,232.64,232.51,9.2158408]
[1733713662706,4.1738,232.64,232.5,8.5709954]
[1733713662906,20.0,232.6,232.49,8.5709954]
[1733713664811,20.0,232.6,232.5,8.5709954]
[1733713665218,20.0,232.6,232.52,8.5709954]
[1733713665412,20.0,232.6,232.53,8.5709954]
[1733713667939,20.0,232.6,232.52,8.5709954]
[1733713672416,20.0,232.6,232.51,8.5709954]
[1733713672618,20.0,232.6,232.5,8.5709954]
[1733713673125,20.0,232.6,232.51,8.5709954]
[1733713673326,20.0,232.6,232.52,8.5709954]
[1733713677746,20.0,232.6,232.54,8.5709954]
[1733713678646,20.0,232.6,232.53,8.5709954]
[1733713680131,20.0,232.6,232.54,8.5709954]
[1733713680724,20.0,232.6,232.53,8.5709954]
[1733713680925,20.0,232.6,232.51,9.21594113]
[1733713681527,20.0,232.6,232.52,8.5709954]
[1733713682129,20.0,232.6,232.5,32.3478794]
[1733713682349,20.0,232.6,232.52,8.5709954]
[1733713684560,20.0,232.6,232.51,8.5709954]
[1733713684736,20.0,232.6,232.5,8.5709954]
[1733713686939,20.0,232.6,232.49,8.5709954]
[1733713689540,20.0,232.6,232.41,5.04365761]
[1733713689862,4.168,232.59,232.47,8.5709954]
[1733713690752,4.168,232.59,232.46,8.5709954]
[1733713690949,4.168,232.59,232.45,8.5709954]
[1733713691740,4.168,232.59,232.47,8.5709954]
[1733713693760,20.0,232.58,232.49,8.5709954]
[1733713693932,4.168,232.59,232.5,9.216049]
[1733713694135,4.168,232.59,232.52,8.5709954]
[1733713694336,4.168,232.59,232.53,8.5709954]
[1733713695753,7.2457,232.63,232.54,8.5709954]
[1733713697064,20.0,232.6,232.54,8.5709954]
[1733713699152,4.166,232.65,232.56,8.5709954]
[1733713700659,20.0,232.63,232.55,8.5709954]
[1733713700866,20.0,232.63,232.54,23.776884]
[1733713701052,20.0,232.63,232.54,32.3478794]
[1733713701254,20.0,232.63,232.55,8.5709954]
[1733713701965,20.0,232.63,232.54,32.3478794]
[1733713704462,20.0,232.63,232.51,0.64488623]
[1733713704658,20.0,232.63,232.52,8.5709954]
[1733713705171,20.0,232.63,232.53,8.5709954]
[1733713705860,20.0,232.63,232.55,8.5709954]
[1733713706454,20.0,232.63,232.54,9.2159259]
[1733713707969,4.166,232.65,232.54,9.2159259]
[1733713708270,20.0,232.64,232.54,9.2159259]
[1733713708747,20.0,232.64,232.52,9.21587134]
[1733713708948,20.0,232.64,232.52,0.64487594]
[1733713709360,20.0,232.64,232.52,9.21587134]
[1733713711563,20.0,232.64,232.46,23.776884]
[1733713711767,20.0,232.64,232.51,8.5709954]
[1733713711934,20.0,232.64,232.5,8.5709954]
[1733713714057,6.8876,232.63,232.48,23.776884]
[1733713714266,20.0,232.6,232.49,0.64501777]
[1733713714571,20.0,232.6,232.49,9.21601317]
[1733713715581,4.1044,232.59,232.46,23.776884]
[1733713715773,4.1044,232.59,232.45,24.42198923]
[1733713715967,4.1044,232.59,232.46,8.5709954]
[1733713716559,4.1044,232.59,232.47,8.5709954]
[1733713717878,4.1044,232.59,232.51,8.5709954]
[1733713719885,4.1044,232.59,232.48,9.21609085]
[1733713721101,4.1044,232.59,232.51,8.5709954]
[1733713721459,4.1044,232.59,232.52,8.5709954]
[1733713722469,6.8876,232.63,232.54,8.5709954]
[1733713722780,6.8876,232.63,232.55,8.5709954]
[1733713722988,6.8876,232.63,232.54,23.776884]
[1733713723173,6.8876,232.63,232.53,8.5709954]
[1733713723783,20.0,232.6,232.53,8.5709954]
[1733713724565,20.0,232.6,232.55,8.5709954]
[1733713724765,4.304,232.64,232.56,8.5709954]
[1733713725179,4.304,232.64,232.55,8.5709954]
[1733713725782,4.304,232.64,232.54,9.21589684]
[1733713727095,4.304,232.64,232.56,8.5709954]
[1733713727896,4.304,232.64,232.55,8.5709954]
[1733713729495,4.304,232.64,232.54,9.21585607]
[1733713734101,4.304,232.64,232.56,8.5709954]
[1733713734396,4.304,232.64,232.55,8.5709954]
[1733713737201,4.304,232.64,232.54,9.21586541]
[1733713737495,4.304,232.64,232.51,24.4217685]
[1733713737700,4.304,232.64,232.52,8.5709954]
[1733713738197,4.304,232.64,232.54,8.5709954]
[1733713740778,4.304,232.64,232.53,8.5709954]
[1733713740995,4.304,232.64,232.54,8.5709954]
[1733713741995,4.304,232.64,232.55,9.21590871]
[1733713744492,3.63279474,232.71,232.63,8.5709954]
[1733713744493,8.04819474,232.71,232.63,8.5709954]
[1733713744806,4.4154,232.71,232.63,8.5709954]
[1733713745022,4.4154,232.71,232.64,8.5709954]
[1733713747695,24.4154,232.71,232.64,8.5709954]
[1733713749291,24.4154,232.71,232.63,8.5709954]
[1733713750198,24.4154,232.71,232.62,8.5709954]
[1733713750610,24.4154,232.71,232.63,8.5709954]
[1733713752503,24.4154,232.71,232.62,8.5709954]
[1733713753320,24.4154,232.71,232.58,23.776884]
[1733713753500,24.4154,232.71,232.61,23.776884]
[1733713753703,24.4154,232.71,232.61,32.3478794]
[1733713753919,24.4154,232.71,232.64,8.5709954]
[1733713755131,24.4154,232.71,232.63,32.3478794]
[1733713756330,4.4154,232.71,232.64,8.5709954]
[1733713757741,24.4154,232.71,232.64,8.5709954]
[1733713760137,24.4154,232.71,232.66,8.5709954]
[1733713760340,24.4154,232.71,232.65,8.5709954]
[1733713762843,24.4154,232.71,232.63,23.776884]
[1733713763232,24.4154,232.71,232.63,32.3478794]
[1733713764340,24.4154,232.71,232.57,0.64460792]
[1733713764512,24.4154,232.71,232.63,8.5709954]
[1733713765340,20.0,232.71,232.63,8.5709954]
[1733713765538,20.0,232.71,232.64,9.21565056]
[1733713768214,20.0,232.71,232.65,8.5709954]
[1733713769117,0.5037897,232.74,232.66,9.21561506]
[1733713769423,0.5037897,232.74,232.67,8.5709954]
[1733713769825,0.5037897,232.74,232.68,8.5709954]
[1733713772042,0.5037897,232.74,232.67,8.5709954]
[1733713772946,0.5037897,232.74,232.65,23.776884]
[1733713773855,20.5037897,232.74,232.65,23.776884]
[1733713774542,0.5037897,232.74,232.65,23.776884]
[1733713776317,0.5037897,232.74,232.65,32.3478794]
[1733713776958,0.5037897,232.74,232.62,0.64458314]
[1733713777120,0.5037897,232.74,232.63,8.5709954]
[1733713778422,0.5037897,232.74,232.64,8.5709954]
[1733713781824,0.5037897,232.74,232.63,8.5709954]
[1733713784066,0.5037897,232.74,232.64,8.5709954]
[1733713785345,0.5037897,232.74,232.63,8.5709954]
[1733713785641,20.0,232.71,232.62,23.776884]
[1733713785837,20.0,232.71,232.62,32.3478794]
[1733713787658,20.0,232.71,232.63,8.5709954]
[1733713790381,20.0,232.71,232.67,8.5709954]
[1733713790670,6.7293897,232.74,232.68,8.5709954]
[1733713790671,0.5037897,232.74,232.68,8.5709954]
[1733713792170,0.5037897,232.74,232.67,8.5709954]
[1733713793553,0.5037897,232.74,232.68,24.42141066]
[1733713794879,0.5037897,232.74,232.68,23.776884]
[1733713795291,0.5037897,232.74,232.64,8.5709954]
[1733713796200,0.5037897,232.74,232.65,8.5709954]
[1733713796946,0.5037897,232.74,232.64,8.5709954]
[1733713797153,1.9713897,232.76,232.62,8.5709954]
[1733713797680,6.5672,232.74,232.57,0.64460861]
[1733713797863,20.0,232.71,232.58,8.5709954]
[1733713799173,20.0,232.71,232.58,9.15485069]
[1733713799493,20.0,232.71,232.58,0.58385529]
[1733713800068,1.9714,232.7,232.58,0.58385529]
[1733713803802,20.0,232.71,232.58,0.58385529]
[1733713804373,21.75604375,232.71,232.58,0.58385529]
[1733713804997,23.776884,232.7,232.58,0.58385529]
[1733713805298,21.75604375,232.71,232.58,0.58385529]
[1733713805600,20.0,232.67,232.58,0.58385529]
[1733713807672,20.0,232.68,232.59,8.5709954]
[1733713808096,20.0,232.71,232.59,8.5709954]
[1733713808674,20.0,232.71,232.58,0.58385529]
[1733713809152,20.0,232.71,232.58,9.15485069]
[1733713810570,20.0,232.71,232.58,0.58385529]
[1733713812169,20.0,232.71,232.58,9.15485069]
[1733713813706,10.19317626,232.76,232.62,8.5709954]
[1733713813891,5.2460275,232.76,232.63,8.5709954]
[1733713814609,6.0137,232.79,232.66,8.5709954]
[1733713815170,7.76430669,232.79,232.66,8.5709954]
[1733713816000,20.0,232.76,232.65,1.5693]
[1733713817392,20.0,232.78,232.65,10.1402954]
[1733713817685,20.0,232.8,232.66,8.5709954]
[1733713817890,20.0,232.78,232.66,8.5709954]
[1733713818096,20.0,232.78,232.65,10.1402954]
[1733713818401,20.0,232.78,232.65,1.5693]
[1733713823495,20.0,232.74,232.65,1.5693]
[1733713825284,20.0,232.73,232.6,1.5398]
[1733713827723,6.19,232.76,232.6,1.5398]
[1733713827724,20.0,232.69,232.6,1.5398]
[1733713830404,20.0,232.73,232.6,1.5398]
[1733713838831,1.70193429,232.74,232.6,1.5398]
[1733713839010,20.0,232.73,232.6,1.5398]
[1733713840809,20.0,232.74,232.6,1.5398]
[1733713841132,20.0,232.73,232.6,1.5398]
[1733713843529,21.74203278,232.73,232.6,1.5398]
[1733713844120,2.74182971,232.76,232.61,1.6193]